[Event "Late-Titled-Tuesday-Blitz-March-05-2024"]
[Site "Chess.com"]
[Date "2024.03.05"]
[Round "2"]
[White "GilbertoHernandezAmura"]
[Black "C_K_G"]
[Result "1-0"]
[WhiteElo "2456"]
[BlackElo "2153"]
[TimeControl "180+1"]
[EndTime "14:17:24 PST"]
[Termination "GilbertoHernandezAmura won on time"]

1. c4 {[%clk 0:03:00.9]} 1... e5 {[%clk 0:02:54.9]} 2. g3 {[%clk 0:02:59.7]}
2... Bc5 {[%clk 0:02:53.2]} 3. Bg2 {[%clk 0:02:58.5]} 3... Nc6 {[%clk
0:02:49.1]} 4. e3 {[%clk 0:02:57.7]} 4... a6 {[%clk 0:02:47.6]} 5. Ne2 {[%clk
0:02:54.5]} 5... d6 {[%clk 0:02:44.7]} 6. Nbc3 {[%clk 0:02:50.7]} 6... Ba7
{[%clk 0:02:42.4]} 7. Rb1 {[%clk 0:02:42.7]} 7... Nge7 {[%clk 0:02:40.5]} 8. b4
{[%clk 0:02:42.3]} 8... O-O {[%clk 0:02:21.1]} 9. a4 {[%clk 0:02:38.6]} 9... Bg4
{[%clk 0:02:11]} 10. h3 {[%clk 0:02:38.5]} 10... Bh5 {[%clk 0:02:10.9]} 11. b5
{[%clk 0:02:23.1]} 11... axb5 {[%clk 0:02:08.3]} 12. axb5 {[%clk 0:02:24]} 12...
Na5 {[%clk 0:02:07.8]} 13. d3 {[%clk 0:02:24.4]} 13... f5 {[%clk 0:01:49.5]} 14.
Ra1 {[%clk 0:02:18.7]} 14... Bb6 {[%clk 0:01:49.2]} 15. Na4 {[%clk 0:02:12.1]}
15... Bxe2 {[%clk 0:01:20.6]} 16. Kxe2 {[%clk 0:02:00.8]} 16... e4 {[%clk
0:01:15.8]} 17. Nxb6 {[%clk 0:01:57]} 17... exd3+ {[%clk 0:01:06.9]} 18. Qxd3
{[%clk 0:01:54.9]} 18... cxb6 {[%clk 0:01:06.6]} 19. Bb2 {[%clk 0:01:54.3]}
19... Rc8 {[%clk 0:01:02.6]} 20. Rac1 {[%clk 0:01:52.4]} 20... Rc7 {[%clk
0:00:53.5]} 21. Rhd1 {[%clk 0:01:47.5]} 21... Nc8 {[%clk 0:00:36.8]} 22. Bd5+
{[%clk 0:01:44.4]} 22... Kh8 {[%clk 0:00:36.1]} 23. h4 {[%clk 0:01:43.7]} 23...
Qe7 {[%clk 0:00:34.2]} 24. Rc2 {[%clk 0:01:32.7]} 24... h6 {[%clk 0:00:18]} 25.
Kf1 {[%clk 0:01:30.4]} 25... Qd7 {[%clk 0:00:12.5]} 26. Kg2 {[%clk 0:01:21.2]}
26... Ne7 {[%clk 0:00:12.7]} 27. Bf3 {[%clk 0:01:20.5]} 27... Ng6 {[%clk
0:00:12.1]} 28. Qxd6 {[%clk 0:01:13.9]} 28... Qf7 {[%clk 0:00:12.4]} 29. Bh5
{[%clk 0:01:08.3]} 29... Nxh4+ {[%clk 0:00:09.1]} 30. gxh4 {[%clk 0:01:06.7]}
30... Qxh5 {[%clk 0:00:09.8]} 31. Qxf8+ {[%clk 0:01:06.6]} 31... Kh7 {[%clk
0:00:08.7]} 32. Rd4 {[%clk 0:00:56.4]} 32... Nb3 {[%clk 0:00:06]} 33. Rf4 {[%clk
0:00:55.5]} 33... Nc5 {[%clk 0:00:04]} 34. Qxf5+ {[%clk 0:00:54.5]} 34... Qxf5
{[%clk 0:00:04.2]} 35. Rxf5 {[%clk 0:00:55.4]} 35... Nd3 {[%clk 0:00:04]} 36.
Kg1 {[%clk 0:00:47.6]} 1-0

[Event "Late-Titled-Tuesday-Blitz-March-05-2024"]
[Site "Chess.com"]
[Date "2024.03.05"]
[Round "2"]
[White "esrosenberg"]
[Black "DonBroca"]
[Result "1-0"]
[WhiteElo "2452"]
[BlackElo "2145"]
[TimeControl "180+1"]
[EndTime "14:17:24 PST"]
[Termination "esrosenberg won on time"]

1. d4 {[%clk 0:03:00.9]} 1... Nf6 {[%clk 0:02:58.9]} 2. c4 {[%clk 0:03:01.5]}
2... e6 {[%clk 0:02:59]} 3. Nc3 {[%clk 0:03:01.9]} 3... Bb4 {[%clk 0:02:59.3]}
4. Nf3 {[%clk 0:03:02.5]} 4... d5 {[%clk 0:02:58.4]} 5. Qa4+ {[%clk 0:03:01.8]}
5... Nc6 {[%clk 0:02:57.7]} 6. e3 {[%clk 0:03:00.8]} 6... O-O {[%clk 0:02:55.8]}
7. Qc2 {[%clk 0:03:01.3]} 7... Re8 {[%clk 0:02:46.2]} 8. Bd2 {[%clk 0:02:58.6]}
8... e5 {[%clk 0:02:41]} 9. dxe5 {[%clk 0:02:29.5]} 9... Nxe5 {[%clk 0:02:41.9]}
10. Nxe5 {[%clk 0:02:27.2]} 10... Rxe5 {[%clk 0:02:42.8]} 11. O-O-O {[%clk
0:02:19.2]} 11... Bf5 {[%clk 0:02:28.2]} 12. Qb3 {[%clk 0:02:03.8]} 12... c5
{[%clk 0:01:14.5]} 13. a3 {[%clk 0:01:35.7]} 13... Ba5 {[%clk 0:01:04]} 14. Nxd5
{[%clk 0:01:28.3]} 14... Nxd5 {[%clk 0:00:52.6]} 15. Bxa5 {[%clk 0:01:10.4]}
15... Qxa5 {[%clk 0:00:53.5]} 16. cxd5 {[%clk 0:01:10.4]} 16... Rd8 {[%clk
0:00:32.1]} 17. Bc4 {[%clk 0:01:07.4]} 17... a6 {[%clk 0:00:17.8]} 18. Qxb7
{[%clk 0:00:59.5]} 18... Rd7 {[%clk 0:00:15.1]} 19. Qb8+ {[%clk 0:00:54]} 19...
Rd8 {[%clk 0:00:15]} 20. Qxe5 {[%clk 0:00:54.1]} 20... Bg6 {[%clk 0:00:13.9]}
21. d6 {[%clk 0:00:46.3]} 21... h6 {[%clk 0:00:08]} 22. d7 {[%clk 0:00:36.3]}
22... Kh7 {[%clk 0:00:06.2]} 23. Bd3 {[%clk 0:00:32.7]} 23... Qb6 {[%clk
0:00:02.4]} 24. Bxg6+ {[%clk 0:00:28.8]} 24... fxg6 {[%clk 0:00:03.3]} 25. Rd6
{[%clk 0:00:20.5]} 25... Qb3 {[%clk 0:00:02.6]} 26. Rhd1 {[%clk 0:00:19.9]}
26... Qa2 {[%clk 0:00:02.6]} 27. Qe4 {[%clk 0:00:16.1]} 1-0

[Event "Late-Titled-Tuesday-Blitz-March-05-2024"]
[Site "Chess.com"]
[Date "2024.03.05"]
[Round "2"]
[White "TigrVShlyape"]
[Black "Josetricks"]
[Result "1-0"]
[WhiteElo "2878"]
[BlackElo "2587"]
[TimeControl "180+1"]
[EndTime "14:17:25 PST"]
[Termination "TigrVShlyape won by resignation"]

1. e4 {[%clk 0:03:00.9]} 1... g6 {[%clk 0:03:00.1]} 2. d4 {[%clk 0:03:00.3]}
2... Bg7 {[%clk 0:03:00.6]} 3. c3 {[%clk 0:03:00.8]} 3... c6 {[%clk 0:03:00.9]}
4. Bd3 {[%clk 0:02:56.6]} 4... d5 {[%clk 0:03:01.3]} 5. e5 {[%clk 0:02:55.8]}
5... f6 {[%clk 0:03:01.4]} 6. f4 {[%clk 0:02:52.2]} 6... Nh6 {[%clk 0:02:58.8]}
7. Nf3 {[%clk 0:02:51.9]} 7... Bg4 {[%clk 0:02:58.3]} 8. Nbd2 {[%clk 0:02:51.1]}
8... O-O {[%clk 0:02:56.4]} 9. O-O {[%clk 0:02:50.6]} 9... fxe5 {[%clk
0:02:56.2]} 10. fxe5 {[%clk 0:02:50.8]} 10... Nf5 {[%clk 0:02:44.2]} 11. Qe1
{[%clk 0:02:43.9]} 11... e6 {[%clk 0:02:41.7]} 12. h3 {[%clk 0:02:42.4]} 12...
Bxf3 {[%clk 0:02:41.6]} 13. Nxf3 {[%clk 0:02:42.1]} 13... c5 {[%clk 0:02:41.9]}
14. g4 {[%clk 0:02:41.1]} 14... Nh6 {[%clk 0:02:36.3]} 15. Be3 {[%clk
0:02:28.7]} 15... Nc6 {[%clk 0:02:34.2]} 16. Qd2 {[%clk 0:02:25.3]} 16... Nf7
{[%clk 0:02:33.2]} 17. Kg2 {[%clk 0:02:24.9]} 17... Qb6 {[%clk 0:02:23.3]} 18.
h4 {[%clk 0:02:23]} 18... Rac8 {[%clk 0:02:17.7]} 19. Rac1 {[%clk 0:02:20.2]}
19... cxd4 {[%clk 0:02:16.7]} 20. cxd4 {[%clk 0:02:19.5]} 20... Ne7 {[%clk
0:01:33.1]} 21. b4 {[%clk 0:01:58]} 21... Rxc1 {[%clk 0:01:21.8]} 22. Rxc1
{[%clk 0:01:57.9]} 22... Nc6 {[%clk 0:01:16.9]} 23. a3 {[%clk 0:01:54.2]} 23...
a6 {[%clk 0:01:06.7]} 24. Rb1 {[%clk 0:01:48.4]} 24... Ne7 {[%clk 0:01:01.7]}
25. a4 {[%clk 0:01:47.5]} 25... Rc8 {[%clk 0:01:01]} 26. b5 {[%clk 0:01:46.6]}
26... a5 {[%clk 0:00:56.6]} 27. Rc1 {[%clk 0:01:45.3]} 27... Bf8 {[%clk
0:00:35.5]} 28. Rc2 {[%clk 0:01:39.9]} 28... Rxc2 {[%clk 0:00:31.4]} 29. Qxc2
{[%clk 0:01:39.7]} 29... Nh6 {[%clk 0:00:27.5]} 30. Kg3 {[%clk 0:01:37.2]} 30...
Nf7 {[%clk 0:00:13.9]} 31. h5 {[%clk 0:01:35.3]} 31... Kg7 {[%clk 0:00:11.7]}
32. hxg6 {[%clk 0:01:29.9]} 32... hxg6 {[%clk 0:00:12.6]} 33. Qc5 {[%clk
0:01:25.7]} 33... Qd8 {[%clk 0:00:08.8]} 34. Qc1 {[%clk 0:01:24.4]} 34... Qb6
{[%clk 0:00:08.6]} 35. Ng1 {[%clk 0:01:14.2]} 35... Kg8 {[%clk 0:00:07.7]} 36.
Ne2 {[%clk 0:01:13.9]} 36... Nxe5 {[%clk 0:00:05.7]} 37. dxe5 {[%clk 0:01:13]}
37... Qd8 {[%clk 0:00:02.7]} 38. Nd4 {[%clk 0:01:10]} 38... Bg7 {[%clk
0:00:03.1]} 39. Nxe6 {[%clk 0:01:03.1]} 39... Bxe5+ {[%clk 0:00:03.3]} 40. Bf4
{[%clk 0:01:02.4]} 40... Qd6 {[%clk 0:00:02.6]} 41. Ng5 {[%clk 0:01:00.4]} 41...
Qf6 {[%clk 0:00:01]} 42. Nf3 {[%clk 0:00:59.5]} 42... Bxf4+ {[%clk 0:00:01.4]}
43. Qxf4 {[%clk 0:00:59.5]} 43... Qc3 {[%clk 0:00:02.3]} 44. Ne5 {[%clk
0:00:56.4]} 44... Nf5+ {[%clk 0:00:01.4]} 45. gxf5 {[%clk 0:00:55.9]} 45... g5
{[%clk 0:00:02.3]} 46. Qxg5+ {[%clk 0:00:55.6]} 46... Kf8 {[%clk 0:00:03.2]} 1-0

[Event "Late-Titled-Tuesday-Blitz-March-05-2024"]
[Site "Chess.com"]
[Date "2024.03.05"]
[Round "2"]
[White "Crazy_girl99"]
[Black "Attacker_2006"]
[Result "1-0"]
[WhiteElo "2559"]
[BlackElo "2358"]
[TimeControl "180+1"]
[EndTime "14:17:31 PST"]
[Termination "Crazy_girl99 won on time"]

1. e4 {[%clk 0:02:59]} 1... e6 {[%clk 0:02:58]} 2. d4 {[%clk 0:02:58.3]} 2... d5
{[%clk 0:02:58.4]} 3. e5 {[%clk 0:02:58.6]} 3... c5 {[%clk 0:02:58.2]} 4. c3
{[%clk 0:02:58.9]} 4... cxd4 {[%clk 0:02:58.5]} 5. cxd4 {[%clk 0:02:59]} 5...
Nc6 {[%clk 0:02:51.9]} 6. Nf3 {[%clk 0:02:54.4]} 6... f6 {[%clk 0:02:34.7]} 7.
exf6 {[%clk 0:02:51.7]} 7... Nxf6 {[%clk 0:02:31.6]} 8. Nc3 {[%clk 0:02:48.3]}
8... Bd6 {[%clk 0:02:28.2]} 9. Bd3 {[%clk 0:02:46.7]} 9... O-O {[%clk
0:02:24.9]} 10. Bg5 {[%clk 0:02:42.3]} 10... h6 {[%clk 0:02:19.6]} 11. Bh4
{[%clk 0:02:41.1]} 11... Qb6 {[%clk 0:02:14.6]} 12. O-O {[%clk 0:02:28.9]} 12...
Kh8 {[%clk 0:02:04.3]} 13. Rc1 {[%clk 0:02:18.1]} 13... Nxd4 {[%clk 0:01:55.6]}
14. Bb1 {[%clk 0:01:34.6]} 14... Nxf3+ {[%clk 0:01:34.4]} 15. Qxf3 {[%clk
0:01:35.5]} 15... Bd7 {[%clk 0:01:07.2]} 16. Qd3 {[%clk 0:01:32.6]} 16... Rf7
{[%clk 0:00:55]} 17. Qg6 {[%clk 0:01:27.7]} 17... Kg8 {[%clk 0:00:45.6]} 18. Ne2
{[%clk 0:00:53]} 18... Qxb2 {[%clk 0:00:37.9]} 19. Ng3 {[%clk 0:00:47.9]} 19...
Bc6 {[%clk 0:00:21.3]} 20. Nh5 {[%clk 0:00:42.7]} 20... Qe5 {[%clk 0:00:13.8]}
21. Nxf6+ {[%clk 0:00:40.2]} 21... Rxf6 {[%clk 0:00:13]} 22. Qh7+ {[%clk
0:00:40.1]} 22... Kf8 {[%clk 0:00:11.2]} 23. Bg3 {[%clk 0:00:38.7]} 23... Rf4
{[%clk 0:00:06.5]} 24. Qh8+ {[%clk 0:00:35.1]} 24... Kf7 {[%clk 0:00:04.2]} 25.
Qxa8 {[%clk 0:00:35.4]} 25... d4 {[%clk 0:00:02.2]} 26. Qxa7 {[%clk 0:00:26.1]}
26... Qd5 {[%clk 0:00:02.9]} 27. Rxc6 {[%clk 0:00:15.5]} 27... Qxc6 {[%clk
0:00:01.6]} 28. Bxf4 {[%clk 0:00:15.8]} 28... Bxf4 {[%clk 0:00:01.4]} 29. Qxd4
{[%clk 0:00:16.3]} 1-0

[Event "Late-Titled-Tuesday-Blitz-March-05-2024"]
[Site "Chess.com"]
[Date "2024.03.05"]
[Round "2"]
[White "sotochess"]
[Black "1g60-1"]
[Result "1-0"]
[WhiteElo "2580"]
[BlackElo "2355"]
[TimeControl "180+1"]
[EndTime "14:17:36 PST"]
[Termination "sotochess won by resignation"]

1. e4 {[%clk 0:03:00]} 1... c5 {[%clk 0:02:56.3]} 2. Nf3 {[%clk 0:02:56]} 2...
e6 {[%clk 0:02:56.7]} 3. c4 {[%clk 0:02:55.3]} 3... a6 {[%clk 0:02:55.1]} 4. d4
{[%clk 0:02:53.9]} 4... cxd4 {[%clk 0:02:56]} 5. Nxd4 {[%clk 0:02:54.6]} 5...
Qc7 {[%clk 0:02:56.6]} 6. Nc3 {[%clk 0:02:54.4]} 6... Nf6 {[%clk 0:02:56.8]} 7.
Be3 {[%clk 0:02:53.9]} 7... Bb4 {[%clk 0:02:56.7]} 8. Bd3 {[%clk 0:02:51.5]}
8... Nc6 {[%clk 0:02:51.9]} 9. O-O {[%clk 0:02:51.2]} 9... O-O {[%clk
0:02:50.1]} 10. Rc1 {[%clk 0:02:50.8]} 10... Ne5 {[%clk 0:02:43.4]} 11. h3
{[%clk 0:02:40.9]} 11... b6 {[%clk 0:02:39]} 12. a3 {[%clk 0:02:38.3]} 12... Be7
{[%clk 0:02:36.1]} 13. Be2 {[%clk 0:02:31]} 13... d6 {[%clk 0:02:29.4]} 14. f4
{[%clk 0:02:30.6]} 14... Ng6 {[%clk 0:02:25.3]} 15. Bf3 {[%clk 0:02:22.4]} 15...
Bb7 {[%clk 0:01:50.7]} 16. f5 {[%clk 0:02:21.8]} 16... exf5 {[%clk 0:01:44]} 17.
Nd5 {[%clk 0:02:20.8]} 17... Nxd5 {[%clk 0:01:37.5]} 18. cxd5 {[%clk 0:02:20.4]}
18... Qd8 {[%clk 0:01:36.8]} 19. Nxf5 {[%clk 0:02:13.1]} 19... Ne5 {[%clk
0:01:35]} 20. Nxe7+ {[%clk 0:02:06.6]} 20... Qxe7 {[%clk 0:01:34.6]} 21. Bxb6
{[%clk 0:02:06.8]} 21... Rac8 {[%clk 0:01:30]} 22. Rxc8 {[%clk 0:02:00.2]} 22...
Rxc8 {[%clk 0:01:29.3]} 23. Bd4 {[%clk 0:02:00.1]} 23... h6 {[%clk 0:01:21]} 24.
Be2 {[%clk 0:01:57.9]} 24... Qg5 {[%clk 0:01:03.6]} 25. Kh1 {[%clk 0:01:48.8]}
25... Qg3 {[%clk 0:00:46.6]} 26. Qa4 {[%clk 0:01:37.8]} 26... a5 {[%clk
0:00:30.5]} 27. Bxe5 {[%clk 0:01:27.2]} 27... Qxe5 {[%clk 0:00:27.8]} 28. Qd7
{[%clk 0:01:26.6]} 28... Rc2 {[%clk 0:00:25.3]} 29. Qxf7+ {[%clk 0:01:17]} 29...
Kh8 {[%clk 0:00:23.5]} 30. Bg4 {[%clk 0:01:10.8]} 30... Bc8 {[%clk 0:00:07]} 31.
Qf8+ {[%clk 0:01:09.7]} 31... Kh7 {[%clk 0:00:07.5]} 32. Bf5+ {[%clk 0:01:08.3]}
32... Bxf5 {[%clk 0:00:05.6]} 33. exf5 {[%clk 0:01:08.2]} 33... Qe4 {[%clk
0:00:03.3]} 34. Rg1 {[%clk 0:01:07.9]} 34... Rxb2 {[%clk 0:00:01.4]} 35. f6
{[%clk 0:01:07.2]} 35... gxf6 {[%clk 0:00:01.6]} 36. Qxf6 {[%clk 0:01:06.8]}
36... Rb3 {[%clk 0:00:01.3]} 37. Qf7+ {[%clk 0:01:04]} 37... Kh8 {[%clk
0:00:01.5]} 38. Qh5 {[%clk 0:01:01.3]} 38... Kh7 {[%clk 0:00:01.5]} 39. Rf1
{[%clk 0:01:00.9]} 39... Rb2 {[%clk 0:00:01.6]} 40. Qf7+ {[%clk 0:00:57.4]}
40... Kh8 {[%clk 0:00:01.8]} 41. Qf8+ {[%clk 0:00:57.6]} 41... Kh7 {[%clk
0:00:02.4]} 42. Rf7+ {[%clk 0:00:58]} 42... Kg6 {[%clk 0:00:02.9]} 43. Qg7+
{[%clk 0:00:58.3]} 43... Kh5 {[%clk 0:00:03.2]} 44. Rf5+ {[%clk 0:00:57.4]}
44... Qxf5 {[%clk 0:00:02.2]} 45. g4+ {[%clk 0:00:57.8]} 45... Kh4 {[%clk
0:00:03]} 46. gxf5 {[%clk 0:00:57.7]} 46... Rb1+ {[%clk 0:00:03.6]} 47. Kg2
{[%clk 0:00:57.8]} 47... Rb2+ {[%clk 0:00:04.5]} 48. Qxb2 {[%clk 0:00:57.6]} 1-0

[Event "Late-Titled-Tuesday-Blitz-March-05-2024"]
[Site "Chess.com"]
[Date "2024.03.05"]
[Round "2"]
[White "northridgehawk"]
[Black "ErikRonka"]
[Result "1-0"]
[WhiteElo "2328"]
[BlackElo "2507"]
[TimeControl "180+1"]
[EndTime "14:17:36 PST"]
[Termination "northridgehawk won on time"]

1. e4 {[%clk 0:03:00.9]} 1... e5 {[%clk 0:02:58.3]} 2. Bc4 {[%clk 0:03:01.3]}
2... Nf6 {[%clk 0:02:57.6]} 3. Nc3 {[%clk 0:03:02]} 3... Nxe4 {[%clk 0:02:56]}
4. Qh5 {[%clk 0:03:00.6]} 4... Nd6 {[%clk 0:02:55.5]} 5. Bb3 {[%clk 0:03:00.9]}
5... Be7 {[%clk 0:02:54.8]} 6. Qxe5 {[%clk 0:02:59.2]} 6... O-O {[%clk
0:02:52.7]} 7. Nge2 {[%clk 0:02:59.9]} 7... b5 {[%clk 0:02:34.5]} 8. d3 {[%clk
0:02:53.5]} 8... Bb7 {[%clk 0:02:32.8]} 9. O-O {[%clk 0:02:53]} 9... a5 {[%clk
0:02:29.4]} 10. a3 {[%clk 0:02:50.5]} 10... Bf6 {[%clk 0:02:23.2]} 11. Qf4
{[%clk 0:02:50.3]} 11... Nc6 {[%clk 0:02:20.3]} 12. Nd5 {[%clk 0:02:44]} 12...
Be5 {[%clk 0:02:18.7]} 13. Qg4 {[%clk 0:02:39.1]} 13... Ne7 {[%clk 0:02:13.8]}
14. Bg5 {[%clk 0:02:34.6]} 14... Bxd5 {[%clk 0:02:05.9]} 15. Bxd5 {[%clk
0:02:34.6]} 15... c6 {[%clk 0:02:06.5]} 16. Bf3 {[%clk 0:02:34.4]} 16... f6
{[%clk 0:01:54.3]} 17. Be3 {[%clk 0:02:23.5]} 17... Nf7 {[%clk 0:01:53.6]} 18.
c3 {[%clk 0:02:22.7]} 18... d5 {[%clk 0:01:48.2]} 19. d4 {[%clk 0:02:22.5]}
19... Bc7 {[%clk 0:01:44.4]} 20. Ng3 {[%clk 0:02:21.6]} 20... Qc8 {[%clk
0:01:40.4]} 21. Qxc8 {[%clk 0:01:54.5]} 21... Raxc8 {[%clk 0:01:41.3]} 22. Bg4
{[%clk 0:01:54.2]} 22... Rcd8 {[%clk 0:01:39.1]} 23. Be6 {[%clk 0:01:52.8]}
23... Rd6 {[%clk 0:01:35.3]} 24. Bh3 {[%clk 0:01:48]} 24... Rdd8 {[%clk
0:01:31.8]} 25. Rfe1 {[%clk 0:01:48]} 25... Bd6 {[%clk 0:01:24.1]} 26. Be6
{[%clk 0:01:46]} 26... Rfe8 {[%clk 0:01:17.1]} 27. Bd2 {[%clk 0:01:45.6]} 27...
Kf8 {[%clk 0:01:14]} 28. Re2 {[%clk 0:01:45.7]} 28... Ng6 {[%clk 0:01:10.6]} 29.
Rae1 {[%clk 0:01:45.1]} 29... Bf4 {[%clk 0:01:08.7]} 30. Bxf7 {[%clk 0:01:39.9]}
30... Rxe2 {[%clk 0:00:57]} 31. Rxe2 {[%clk 0:01:36.4]} 31... Kxf7 {[%clk
0:00:56.6]} 32. Nf5 {[%clk 0:01:26]} 32... Bxd2 {[%clk 0:00:54.4]} 33. Rxd2
{[%clk 0:01:26.9]} 33... Nf4 {[%clk 0:00:49.1]} 34. g3 {[%clk 0:01:25.1]} 34...
Ne6 {[%clk 0:00:47.9]} 35. Re2 {[%clk 0:01:24.5]} 35... g6 {[%clk 0:00:43.8]}
36. Ne3 {[%clk 0:01:22.9]} 36... Rb8 {[%clk 0:00:41.4]} 37. Nc2 {[%clk
0:01:22.4]} 37... Ng5 {[%clk 0:00:36.2]} 38. Kg2 {[%clk 0:01:21.7]} 38... Ne4
{[%clk 0:00:36.5]} 39. f3 {[%clk 0:01:21]} 39... Nd6 {[%clk 0:00:37.1]} 40. b3
{[%clk 0:01:18.8]} 40... a4 {[%clk 0:00:34.4]} 41. b4 {[%clk 0:01:13.9]} 41...
Nc4 {[%clk 0:00:34.6]} 42. Kf2 {[%clk 0:01:14.3]} 42... g5 {[%clk 0:00:28.3]}
43. g4 {[%clk 0:01:10.4]} 43... h5 {[%clk 0:00:27.9]} 44. h3 {[%clk 0:01:10.3]}
44... hxg4 {[%clk 0:00:27.8]} 45. fxg4 {[%clk 0:01:04.6]} 45... Rh8 {[%clk
0:00:28.7]} 46. Kg3 {[%clk 0:01:04.5]} 46... Nd6 {[%clk 0:00:22]} 47. Re3 {[%clk
0:01:00.3]} 47... Ne4+ {[%clk 0:00:22.2]} 48. Kg2 {[%clk 0:01:00.7]} 48... f5
{[%clk 0:00:20.9]} 49. gxf5 {[%clk 0:01:00.1]} 49... Kf6 {[%clk 0:00:21.2]} 50.
Ne1 {[%clk 0:01:00.5]} 50... Kxf5 {[%clk 0:00:20.1]} 51. Nf3 {[%clk 0:01:01]}
51... Rg8 {[%clk 0:00:16.8]} 52. Ne5 {[%clk 0:01:01.3]} 1-0

[Event "Late-Titled-Tuesday-Blitz-March-05-2024"]
[Site "Chess.com"]
[Date "2024.03.05"]
[Round "2"]
[White "xhembulla"]
[Black "SpeedofLight0"]
[Result "0-1"]
[WhiteElo "2648"]
[BlackElo "3092"]
[TimeControl "180+1"]
[EndTime "14:17:39 PST"]
[Termination "SpeedofLight0 won by resignation"]

1. e4 {[%clk 0:03:00.9]} 1... Nc6 {[%clk 0:02:56.1]} 2. Nf3 {[%clk 0:03:00.3]}
2... d6 {[%clk 0:02:55.3]} 3. d4 {[%clk 0:02:59.9]} 3... Nf6 {[%clk 0:02:54.9]}
4. Nc3 {[%clk 0:02:59.2]} 4... g6 {[%clk 0:02:54.9]} 5. Bc4 {[%clk 0:02:55]}
5... Nxe4 {[%clk 0:02:52.8]} 6. Nxe4 {[%clk 0:02:54.4]} 6... d5 {[%clk
0:02:52.9]} 7. Bd3 {[%clk 0:02:54.5]} 7... dxe4 {[%clk 0:02:52.7]} 8. Bxe4
{[%clk 0:02:55.1]} 8... Bg7 {[%clk 0:02:51.8]} 9. c3 {[%clk 0:02:55.1]} 9... O-O
{[%clk 0:02:49.5]} 10. O-O {[%clk 0:02:55.2]} 10... Bf5 {[%clk 0:02:29.2]} 11.
Qe2 {[%clk 0:02:49.9]} 11... Bxe4 {[%clk 0:02:28]} 12. Qxe4 {[%clk 0:02:50.8]}
12... e6 {[%clk 0:02:28.6]} 13. Bg5 {[%clk 0:02:50.3]} 13... Qd7 {[%clk
0:02:27.4]} 14. Qh4 {[%clk 0:02:50.2]} 14... Rfe8 {[%clk 0:02:20.7]} 15. Rad1
{[%clk 0:02:46.6]} 15... a5 {[%clk 0:02:19.4]} 16. Bf6 {[%clk 0:02:40]} 16... a4
{[%clk 0:02:14.5]} 17. Bxg7 {[%clk 0:02:38.4]} 17... Kxg7 {[%clk 0:02:15.4]} 18.
Qf4 {[%clk 0:02:38.6]} 18... Ra5 {[%clk 0:02:14.1]} 19. h4 {[%clk 0:02:38.5]}
19... h6 {[%clk 0:02:12.6]} 20. Rfe1 {[%clk 0:02:37.1]} 20... Rf5 {[%clk
0:02:06.1]} 21. Qe4 {[%clk 0:02:33.5]} 21... Rb5 {[%clk 0:02:04.2]} 22. d5
{[%clk 0:02:22.7]} 22... f5 {[%clk 0:01:49.4]} 23. Qxa4 {[%clk 0:01:32.5]} 23...
Rxd5 {[%clk 0:01:48.6]} 24. Rxd5 {[%clk 0:01:32.5]} 24... Qxd5 {[%clk
0:01:44.5]} 25. Rd1 {[%clk 0:01:31.6]} 25... Qc5 {[%clk 0:01:44.4]} 26. Rd7+
{[%clk 0:01:26.6]} 26... Re7 {[%clk 0:01:44.4]} 27. Rxe7+ {[%clk 0:01:26.8]}
27... Qxe7 {[%clk 0:01:45.3]} 28. b4 {[%clk 0:01:21.5]} 28... Qd6 {[%clk
0:01:43.5]} 29. b5 {[%clk 0:01:19.1]} 29... Ne7 {[%clk 0:01:41]} 30. Qd4+ {[%clk
0:01:15.4]} 30... Qxd4 {[%clk 0:01:40.4]} 31. Nxd4 {[%clk 0:01:15.9]} 31... Kf6
{[%clk 0:01:40.4]} 32. a4 {[%clk 0:01:10.4]} 32... b6 {[%clk 0:01:31]} 33. c4
{[%clk 0:01:10]} 33... Ke5 {[%clk 0:01:30.1]} 34. Nb3 {[%clk 0:01:07.4]} 34...
Ke4 {[%clk 0:01:16.6]} 35. c5 {[%clk 0:00:56.6]} 35... Kd5 {[%clk 0:01:16.4]}
36. cxb6 {[%clk 0:00:50]} 36... cxb6 {[%clk 0:01:17.3]} 37. a5 {[%clk
0:00:46.9]} 37... bxa5 {[%clk 0:01:17.2]} 38. Nxa5 {[%clk 0:00:47.8]} 38... Kc5
{[%clk 0:01:17.9]} 39. Nb7+ {[%clk 0:00:47.5]} 39... Kxb5 {[%clk 0:01:17.8]} 40.
Nd8 {[%clk 0:00:46.3]} 40... e5 {[%clk 0:01:12.3]} 41. Nf7 {[%clk 0:00:46.4]}
41... e4 {[%clk 0:01:12.6]} 42. Nxh6 {[%clk 0:00:46.5]} 42... Kc4 {[%clk
0:01:10.5]} 43. Nf7 {[%clk 0:00:46.8]} 43... Kd5 {[%clk 0:01:07.1]} 44. Ng5
{[%clk 0:00:45.9]} 44... Nc6 {[%clk 0:01:07]} 45. Nh3 {[%clk 0:00:43.7]} 45...
Ke5 {[%clk 0:01:05.9]} 46. Ng5 {[%clk 0:00:43.8]} 46... Nd4 {[%clk 0:01:03.5]}
47. g3 {[%clk 0:00:42.2]} 47... Nf3+ {[%clk 0:00:57.8]} 48. Nxf3+ {[%clk
0:00:18.1]} 48... exf3 {[%clk 0:00:58.7]} 49. Kh2 {[%clk 0:00:15.2]} 49... Ke4
{[%clk 0:00:57.3]} 50. g4 {[%clk 0:00:15.1]} 50... fxg4 {[%clk 0:00:55]} 51. Kg3
{[%clk 0:00:15.4]} 51... Kf5 {[%clk 0:00:55.3]} 52. Kh2 {[%clk 0:00:15.7]} 52...
Kf4 {[%clk 0:00:55.3]} 53. Kg1 {[%clk 0:00:15.8]} 53... g3 {[%clk 0:00:55.5]}
54. fxg3+ {[%clk 0:00:16.6]} 54... Kxg3 {[%clk 0:00:56.4]} 55. Kf1 {[%clk
0:00:17]} 55... Kxh4 {[%clk 0:00:56.5]} 56. Kf2 {[%clk 0:00:17.9]} 56... Kg4
{[%clk 0:00:57.4]} 0-1